lending/lending_fUSD_20260210
["ID","MTS","AMOUNT","RATE_DAILY","PERIOD"]
[405081848,1770767452258,-500.0,0.00042191,120]
[405081849,1770767452267,-500.0,0.00042191,120]
[405081850,1770767452278,-500.0,0.00042191,120]
[405081851,1770767452287,-500.0,0.00042191,120]
[405081852,1770767452296,-500.0,0.00042191,120]
[405081853,1770767452306,-500.0,0.00042191,120]
[405081854,1770767452315,-500.0,0.00042191,120]
[405081855,1770767452324,-500.0,0.00042191,120]
[405081856,1770767452334,-500.0,0.00042191,120]
[405081857,1770767452343,-500.0,0.00042191,120]
[405081858,1770767452353,-281.12663338,0.00042191,120]
[405081859,1770767452364,-765.42464117,0.000422,2]
[405081860,1770767452375,-151.0,0.000422,120]
[405081861,1770767452387,-153.04,0.00042276,120]
[405081862,1770767452396,-153.04,0.00042376,120]
[405081863,1770767452408,-2211.13,0.000424,14]
[405081864,1770767452418,-150.0,0.00042426,120]
[405081865,1770767452427,-7095.19928575,0.00042436,2]
[405081866,1770767452436,-522.31,0.00042438,120]
[405081867,1770767452446,-500.0,0.00042438,120]
[405081868,1770767452456,-6437.96149589,0.00042445,2]
[405081869,1770767452465,-500.0,0.00042466,60]
[405081870,1770767452475,-500.0,0.00042466,60]
[405081871,1770767452485,-500.0,0.00042466,60]
[405081872,1770767452494,-205.38170336,0.00042466,120]
[405081873,1770767452503,-500.0,0.00042466,120]
[405081874,1770767452513,-153.04,0.00042476,120]
[405081875,1770767452522,-153.14863031,0.000425,120]
[405081876,1770767452532,-1500.000999,0.000425,120]
[405081877,1770767452542,-7593.47671998,0.000425,120]
[405081878,1770767452551,-200.0,0.000425,23]
[405081879,1770767452561,-1034.8,0.00042519,120]
[405081880,1770767452570,-603.83652519,0.00042521,120]
[405081881,1770767452580,-522.31,0.00042575,120]
[405081882,1770767452590,-500.0,0.00042575,120]
[405081883,1770767452599,-153.04,0.00042576,120]
[405081884,1770767452608,-153.04,0.00042676,120]
[405081885,1770767452619,-82372.18991623,0.000427,120]
[405081886,1770767452628,-1664.67,0.000427,14]
[405081887,1770767452637,-522.31,0.00042712,120]
[405081888,1770767452648,-500.0,0.00042712,120]
[405081889,1770767452658,-1550.0,0.00042739,30]
[405081890,1770767452668,-1000.0,0.0004274,30]
[405081891,1770767452678,-2500.0,0.0004274,7]
[405081892,1770767452689,-260.58916459,0.0004274,120]
[405081893,1770767452699,-505.0,0.0004277,14]
[405081894,1770767452709,-153.04,0.00042776,120]
[405081895,1770767452719,-3612.03841501,0.000428,60]
[405081896,1770767452730,-153.0,0.000428,120]
[405081897,1770767452740,-198.49808088,0.000428,120]
[405081898,1770767452749,-522.31,0.00042849,120]
[405081899,1770767452759,-500.0,0.00042849,120]
[405081900,1770767452769,-153.04,0.00042876,120]
[405081901,1770767452779,-350.0,0.00042895,2]
[405081902,1770767452789,-942.45,0.000429,14]
[405081903,1770767452800,-151.0,0.000429,120]
[405081904,1770767452809,-151.0,0.000429,120]
[405081905,1770767452819,-151.0,0.000429,120]
[405081906,1770767452831,-151.0,0.000429,120]
[405081907,1770767452841,-151.0,0.000429,120]
[405081908,1770767452851,-151.0,0.000429,120]
[405081909,1770767452871,-177.331585,0.000429,120]
[405081910,1770767452883,-179.187374,0.000429,120]
[405081911,1770767452896,-1160.799133,0.000429,7]
[405081912,1770767452907,-1160.799133,0.000429,7]
[405081913,1770767452919,-1160.799133,0.000429,7]
[405081914,1770767452930,-1160.799133,0.000429,7]
[405081915,1770767452941,-209.386772,0.000429,28]
[405081916,1770767452951,-209.386772,0.000429,28]
[405081917,1770767452962,-209.386772,0.000429,28]
[405081918,1770767452971,-209.386772,0.000429,28]
[405081919,1770767452982,-151.0,0.000429,120]
[405081920,1770767452992,-151.0,0.000429,120]
[405081921,1770767453002,-151.0,0.000429,120]
[405081922,1770767453012,-183.726872,0.000429,120]
[405081923,1770767453023,-151.0,0.000429,120]
[405081924,1770767453034,-151.0,0.000429,120]
[405081925,1770767453044,-151.0,0.000429,120]
[405081926,1770767453055,-183.726872,0.000429,120]
[405081927,1770767453065,-151.0,0.000429,120]
[405081928,1770767453076,-183.726872,0.000429,120]
[405081929,1770767453086,-162.829473,0.000429,120]
[405081930,1770767453096,-183.726872,0.000429,120]
[405081931,1770767453106,-305.502484,0.000429,120]
[405081932,1770767453117,-305.502484,0.000429,120]
[405081933,1770767453128,-305.502484,0.000429,120]
[405081934,1770767453138,-151.0,0.000429,120]
[405081935,1770767453148,-305.502484,0.000429,120]
[405081936,1770767453159,-151.0,0.000429,120]
[405081937,1770767453169,-158.040723,0.000429,31]
[405081938,1770767453179,-158.040723,0.000429,31]
[405081939,1770767453192,-158.040723,0.000429,31]
[405081940,1770767453202,-151.0,0.000429,120]
[405081941,1770767453212,-151.0,0.000429,120]
[405081942,1770767453222,-158.040723,0.000429,31]
[405081943,1770767453232,-189.409335,0.000429,120]
[405081944,1770767453242,-189.409335,0.000429,120]
[405081945,1770767453253,-189.409335,0.000429,120]
[405081946,1770767453263,-189.409335,0.000429,120]
[405081947,1770767453273,-10109.04787209,0.000429,120]
[405081948,1770767453285,-151.0,0.000429,120]
[405081949,1770767453295,-151.0,0.000429,120]
[405081950,1770767453305,-621.79621,0.000429,7]
[405081951,1770767453315,-151.0,0.000429,120]
[405081952,1770767453326,-621.79621,0.000429,7]
[405081953,1770767453336,-621.79621,0.000429,7]
[405081954,1770767453346,-621.79621,0.000429,7]
[405081955,1770767453356,-151.0,0.000429,120]
[405081956,1770767453366,-500.0,0.00042914,60]
[405081957,1770767453376,-500.0,0.00042914,60]
[405081958,1770767453386,-500.0,0.00042914,60]
[405081959,1770767453396,-2828.0,0.00042944,16]
[405081960,1770767453407,-1247.0,0.00042947,16]
[405081961,1770767453417,-153.04,0.00042976,120]
[405081962,1770767453427,-522.31,0.00042986,120]
[405081963,1770767453437,-500.0,0.00042986,120]
[405081964,1770767453448,-500.37980849,0.00043,2]
[405081965,1770767453458,-214.0,0.00043,7]
[405081966,1770767453469,-215.808174,0.00043,120]
[405081967,1770767453479,-985.63878204,0.00043,120]
[405081968,1770767453490,-30729.56610178,0.00043,120]
[405081969,1770767453501,-2222.15826375,0.00043,120]
[405081970,1770767453512,-6336.53885311,0.00043,120]
[405081971,1770767453523,-529.0,0.00043,30]
[405081972,1770767453534,-10017.0,0.00043,7]
[405081973,1770767453544,-1033.05548713,0.00043,30]
[405081974,1770767453554,-4103.58,0.00043013,120]
[405081975,1770767453565,-1000.0,0.00043014,30]
[405081976,1770767453575,-800.0,0.00043049,13]
[405081977,1770767453585,-800.0,0.00043049,13]
[405081978,1770767453595,-800.0,0.00043049,13]
[405081979,1770767453605,-800.0,0.00043049,13]
[405081980,1770767453615,-800.0,0.00043049,13]
[405081981,1770767453625,-800.0,0.00043049,13]
[405081982,1770767453635,-800.0,0.00043049,13]
[405081983,1770767453646,-800.0,0.00043049,13]
[405081984,1770767453656,-800.0,0.00043049,13]
[405081985,1770767453667,-800.0,0.00043049,13]
[405081986,1770767453678,-800.0,0.00043049,13]
[405081987,1770767453860,-800.0,0.00043049,13]
[405081988,1770767453891,-800.0,0.00043049,13]
[405081989,1770767453901,-800.0,0.00043049,13]
[405081990,1770767453911,-800.0,0.00043049,13]
[405081991,1770767453921,-800.0,0.00043049,13]
[405081992,1770767453930,-800.0,0.00043049,13]
[405081993,1770767453940,-800.0,0.00043049,13]
[405081994,1770767453950,-800.0,0.00043049,13]
[405081995,1770767453959,-800.0,0.00043049,13]
[405081996,1770767453969,-800.0,0.00043049,13]
[405081997,1770767453978,-800.0,0.00043049,13]
[405081998,1770767453988,-800.0,0.00043049,13]
[405081999,1770767453997,-800.0,0.00043049,13]
[405082000,1770767454008,-800.0,0.00043049,13]
[405082001,1770767454017,-800.0,0.00043049,13]
[405082002,1770767454027,-800.0,0.00043049,13]
[405082003,1770767454037,-800.0,0.00043049,13]
[405082004,1770767454046,-800.0,0.00043049,13]
[405082005,1770767454056,-800.0,0.00043049,13]
[405082006,1770767454066,-800.0,0.00043049,13]
[405082007,1770767454075,-631.0,0.00043049,13]
[405082008,1770767454085,-800.0,0.00043049,13]
[405082009,1770767454094,-800.0,0.00043049,13]
[405082010,1770767454103,-800.0,0.00043049,13]
[405082011,1770767454113,-800.0,0.00043049,13]
[405082012,1770767454127,-800.0,0.00043049,13]
[405082013,1770767454137,-800.0,0.00043049,13]
[405082014,1770767454146,-209.0,0.00043049,13]
[405082015,1770767454155,-153.04,0.00043076,120]
[405082016,1770767454166,-23794.69598797,0.000431,120]
[405082017,1770767454176,-2217.97,0.000431,30]
[405082018,1770767454186,-522.31,0.00043123,120]
[405082019,1770767454195,-500.0,0.00043123,120]
[405082020,1770767454205,-153.04,0.00043176,120]
[405082021,1770767454214,-84981.88,0.000432,120]
[405082022,1770767454223,-160.0,0.000432,120]
[405082023,1770767454232,-160.0,0.000432,120]
[405082024,1770767454242,-1845.40565946,0.00043203,2]
[405082025,1770767454251,-8600.2986,0.0004322,7]
[405082026,1770767454260,-522.31,0.0004326,120]
[405082027,1770767454268,-500.0,0.0004326,120]
[405082028,1770767454277,-29960.0,0.00043261,30]
[405082029,1770767454287,-840.0,0.00043268,16]
[405082030,1770767454295,-164.0,0.00043271,16]
[405082031,1770767454308,-164.0,0.00043275,16]
[405082032,1770767454318,-2828.0,0.00043275,16]
[405082033,1770767454327,-153.04,0.00043276,120]
[405082034,1770767454337,-1000.0,0.00043288,30]
[405082035,1770767454346,-151.0,0.000433,120]
[405082036,1770767454356,-905.0,0.00043321,16]
[405082037,1770767454366,-153.04,0.00043376,120]
[405082038,1770767454376,-522.31,0.00043397,120]
[405082039,1770767454386,-500.0,0.00043397,120]
[405082040,1770767454396,-2211.13,0.000434,14]
[405082041,1770767454406,-500.0,0.00043462,60]
[405082042,1770767454416,-350.0,0.00043472,2]
[405082043,1770767454428,-153.04,0.00043476,120]
[405082044,1770767454439,-150.04905653,0.000435,120]
[405082045,1770767454450,-314.26358231,0.000435,120]
[405082046,1770767454460,-658.59473702,0.0004351,15]
[405082047,1770767454471,-658.59473697,0.0004351,15]
[405082048,1770767454481,-658.59473697,0.0004351,15]
[405082049,1770767454492,-658.59473697,0.0004351,15]
[405082050,1770767454501,-658.59473697,0.0004351,15]
[405082051,1770767454511,-658.59473697,0.0004351,15]
[405082052,1770767454520,-658.59473697,0.0004351,15]
[405082053,1770767454529,-658.59473697,0.0004351,15]
[405082054,1770767454538,-658.59473697,0.0004351,15]
[405082055,1770767454548,-658.59473697,0.0004351,15]
[405082056,1770767454558,-658.59473697,0.0004351,15]
[405082057,1770767454568,-658.59473697,0.0004351,15]
[405082058,1770767454579,-658.59473697,0.0004351,15]
[405082059,1770767454589,-658.59473697,0.0004351,15]
[405082060,1770767454600,-275.1240097,0.00043514,120]
[405082061,1770767454610,-522.31,0.00043534,120]
[405082062,1770767454620,-500.0,0.00043534,120]
[405082063,1770767454630,-500.0,0.0004355,30]
[405082064,1770767454640,-150.0,0.0004356,120]
[405082065,1770767454651,-150.0,0.0004356,120]
[405082066,1770767454661,-1000.0,0.00043562,30]
[405082067,1770767454670,-317.63569827,0.00043575,7]
[405082068,1770767454680,-153.04,0.00043576,120]
[405082069,1770767454691,-840.0,0.00043591,16]
[405082070,1770767454700,-840.0,0.00043593,16]
[405082071,1770767454711,-840.0,0.00043596,16]
[405082072,1770767454722,-2828.0,0.00043597,16]
[405082073,1770767454732,-420.50602139,0.000436,120]
[405082074,1770767454742,-988.72160231,0.00043613,120]
[405082075,1770767454752,-505.0,0.00043616,15]
[405082076,1770767454762,-350.0,0.00043631,2]
[405082077,1770767454772,-151.0,0.00043639,10]
[405082078,1770767454783,-151.0,0.00043639,10]
[405082079,1770767454792,-151.0,0.00043639,10]
[405082080,1770767454802,-151.0,0.00043639,10]
[405082081,1770767454813,-151.0,0.00043639,10]
[405082082,1770767454824,-151.0,0.00043639,10]
[405082083,1770767454835,-151.0,0.00043639,10]
[405082084,1770767454847,-151.0,0.00043639,10]
[405082085,1770767454856,-151.0,0.00043639,10]
[405082086,1770767454865,-151.0,0.00043639,10]
[405082087,1770767454875,-151.0,0.00043639,10]
[405082088,1770767454886,-224.0,0.00043639,10]
[405082089,1770767454895,-522.31,0.00043671,120]
[405082090,1770767454905,-500.0,0.00043671,120]
[405082091,1770767454916,-153.04,0.00043676,120]
[405082092,1770767454925,-5738.28721188,0.0004368,2]
[405082093,1770767454934,-308.03957212,0.0004368,2]
[405082094,1770767454944,-308.51699327,0.0004368,2]
[405082095,1770767454953,-29960.0,0.00043707,30]
[405082096,1770767454962,-1355.15,0.00043742,2]
[405082097,1770767454971,-359.48663569,0.00043747,120]
[405082098,1770767454981,-2851.94637377,0.0004375,120]
[405082099,1770767454990,-153.04,0.00043776,120]
[405082100,1770767455000,-221261.0680318,0.0004378,120]
[405082101,1770767455010,-151.0,0.0004378,120]
[405082102,1770767455020,-151.0,0.0004378,120]
[405082103,1770767455030,-151.0,0.0004378,120]
[405082104,1770767455039,-153.0,0.000438,120]
[405082105,1770767455050,-151.0,0.000438,120]
[405082106,1770767455060,-151.0,0.000438,120]
[405082107,1770767455070,-151.0,0.000438,120]
[405082108,1770767455081,-268.817833,0.000438,120]
[405082109,1770767455091,-151.0,0.000438,120]
[405082110,1770767455102,-252.8052,0.000438,120]
[405082111,1770767455112,-151.0,0.000438,120]
[405082112,1770767455126,-151.0,0.000438,120]
[405082113,1770767455137,-151.0,0.000438,120]
[405082114,1770767455148,-151.0,0.000438,10]
[405082115,1770767455160,-151.0,0.000438,10]
[405082116,1770767455170,-276.942864,0.000438,10]
[405082117,1770767455180,-151.0,0.000438,120]
[405082118,1770767455192,-263.077439,0.000438,120]
[405082119,1770767455201,-178.565813,0.000438,120]
[405082120,1770767455211,-163.447591,0.000438,120]
[405082121,1770767455220,-320.905604,0.000438,120]
[405082122,1770767455230,-320.905604,0.000438,120]
[405082123,1770767455240,-320.905604,0.000438,120]
[405082124,1770767455250,-320.905604,0.000438,120]
[405082125,1770767455260,-172.87322,0.000438,15]
[405082126,1770767455270,-172.87322,0.000438,15]
[405082127,1770767455281,-172.87322,0.000438,15]
[405082128,1770767455291,-172.87322,0.000438,15]
[405082129,1770767455301,-151.0,0.000438,120]
[405082130,1770767455312,-285.918099,0.000438,120]
[405082131,1770767455321,-151.0,0.000438,120]
[405082132,1770767455330,-151.0,0.000438,120]
[405082133,1770767455339,-151.0,0.000438,120]
[405082134,1770767455350,-176.984887,0.000438,120]
[405082135,1770767455360,-151.0,0.000438,120]
[405082136,1770767455371,-217.656578,0.000438,120]
[405082137,1770767455380,-151.0,0.000438,120]
[405082138,1770767455390,-176.908834,0.000438,14]
[405082139,1770767455402,-176.908834,0.000438,14]
[405082140,1770767455411,-176.908834,0.000438,14]
[405082141,1770767455421,-151.0,0.000438,120]
[405082142,1770767455431,-176.908834,0.000438,14]
[405082143,1770767455441,-151.0,0.000438,120]
[405082144,1770767455451,-151.0,0.000438,120]
[405082145,1770767455462,-151.0,0.000438,120]
[405082146,1770767455472,-151.0,0.000438,120]
[405082147,1770767455481,-151.0,0.000438,120]
[405082148,1770767455491,-151.0,0.000438,120]
[405082149,1770767455502,-151.0,0.000438,120]
[405082150,1770767455512,-151.0,0.000438,120]
[405082151,1770767455521,-151.0,0.000438,120]
[405082152,1770767455531,-151.0,0.000438,120]
[405082153,1770767455541,-151.0,0.000438,120]
[405082154,1770767455550,-264.218864,0.000438,120]
[405082155,1770767455561,-309.335196,0.000438,120]
[405082156,1770767455571,-309.335196,0.000438,120]
[405082157,1770767455581,-309.335196,0.000438,120]
[405082158,1770767455590,-309.335196,0.000438,120]
[405082159,1770767455600,-151.0,0.000438,120]
[405082160,1770767455610,-151.0,0.000438,120]
[405082161,1770767455620,-151.0,0.000438,120]
[405082162,1770767455630,-151.0,0.000438,120]
[405082163,1770767455640,-377.394583,0.000438,120]
[405082164,1770767455650,-377.394583,0.000438,120]
[405082165,1770767455659,-377.394583,0.000438,120]
[405082166,1770767455668,-377.394583,0.000438,120]
[405082167,1770767455677,-350.0,0.00043805,2]
[405082168,1770767455687,-522.31,0.00043808,120]
[405082169,1770767455696,-500.0,0.00043808,120]
[405082170,1770767455705,-1000.0,0.00043836,30]
[405082171,1770767455714,-3796.074764,0.00043836,120]
[405082172,1770767455723,-3796.074764,0.00043836,120]
[405082173,1770767455732,-3796.074764,0.00043836,120]
[405082174,1770767455742,-3796.074764,0.00043836,120]
[405082175,1770767455751,-3796.074764,0.00043836,120]
[405082176,1770767455760,-3796.074764,0.00043836,120]
[405082177,1770767455770,-3796.074764,0.00043836,120]
[405082178,1770767455779,-3796.074764,0.00043836,120]
[405082179,1770767455789,-3796.074764,0.00043836,120]
[405082180,1770767455798,-3796.074764,0.00043836,120]
[405082181,1770767455807,-3796.074764,0.00043836,120]
[405082182,1770767455816,-3796.074764,0.00043836,120]
[405082183,1770767455827,-3796.074764,0.00043836,120]
[405082184,1770767455840,-3796.074764,0.00043836,120]
[405082185,1770767455849,-3796.074764,0.00043836,120]
[405082186,1770767455859,-3796.074764,0.00043836,120]
[405082187,1770767455868,-500.0,0.00043836,120]
[405082188,1770767455878,-20000.0,0.00043836,120]
[405082189,1770767455887,-150.0,0.00043836,2]
[405082190,1770767455897,-153.04,0.00043876,120]
[405082191,1770767455906,-5428.2475119,0.000439,120]
[405082192,1770767455915,-164.0,0.00043907,16]
[405082193,1770767455925,-840.0,0.00043913,16]
[405082194,1770767455934,-840.0,0.00043913,16]
[405082195,1770767455944,-160.0,0.00043921,16]
[405082196,1770767455954,-522.31,0.00043945,120]
[405082197,1770767455964,-500.0,0.00043945,120]
[405082198,1770767455973,-164.0,0.00043953,16]
[405082199,1770767455983,-4103.58,0.00043972,120]
[405082200,1770767455992,-153.04,0.00043976,120]
[405082201,1770767456002,-51418.38043079,0.00044,2]
[405082202,1770767456011,-29000.0,0.00044,2]
[405082203,1770767456021,-7256.23071962,0.00044,2]
[405082204,1770767456032,-2000.0,0.00044,2]
[405082205,1770767456042,-942.45,0.00044,14]
[405082206,1770767456052,-529.0,0.00044,30]
[405082207,1770767456062,-150.0,0.00044,120]
[405082208,1770767456071,-1664.67,0.00044,14]
[405082209,1770767456081,-1033.0,0.00044,30]
[405082210,1770767456091,-14870.52328235,0.00044,120]
[405082211,1770767456100,-500.0,0.00044,120]
[405082212,1770767456110,-500.0,0.0004401,60]
[405082213,1770767456123,-500.0,0.0004401,60]
[405082214,1770767456133,-150.0,0.00044046,30]
[405082215,1770767456143,-150.0,0.00044046,30]
[405082216,1770767456152,-150.0,0.00044046,30]
[405082217,1770767456163,-150.0,0.00044046,30]
[405082218,1770767456174,-150.0,0.00044046,30]
[405082219,1770767456184,-150.0,0.00044046,30]
[405082220,1770767456196,-150.0,0.00044046,30]
[405082221,1770767456206,-150.0,0.00044046,30]
[405082222,1770767456217,-150.0,0.00044046,30]
[405082223,1770767456226,-150.0,0.00044046,30]
[405082224,1770767456237,-150.0,0.00044046,30]
[405082225,1770767456247,-150.0,0.00044046,30]
[405082226,1770767456256,-298.258,0.00044046,30]
[405082227,1770767456266,-24880.42,0.00044076,13]
[405082228,1770767456276,-153.04,0.00044076,120]
[405082229,1770767456286,-522.31,0.00044082,120]
[405082230,1770767456295,-500.0,0.00044082,120]
[405082231,1770767456304,-150.0,0.00044085,120]
[405082232,1770767456314,-150.0,0.00044085,120]
[405082233,1770767456324,-296.19977,0.0004409,120]
[405082234,1770767456334,-296.19977,0.0004409,120]
[405082235,1770767456343,-296.19977,0.0004409,120]
[405082236,1770767456353,-296.19977,0.0004409,120]
[405082237,1770767456362,-296.19977,0.0004409,120]
[405082238,1770767456372,-19654.10214339,0.000441,30]
[405082239,1770767456381,-986.0,0.000441,30]
[405082240,1770767456391,-790.0,0.000441,30]
[405082241,1770767456403,-2000.0,0.000441,7]
[405082242,1770767456413,-1000.0,0.0004411,30]
[405082243,1770767456423,-3733.82364512,0.00044112,10]
[405082244,1770767456434,-29960.0,0.00044153,30]
[405082245,1770767456445,-153.04,0.00044176,120]
[405082246,1770767456456,-2217.97,0.000442,30]
[405082247,1770767456467,-362337.05,0.000442,120]
[405082248,1770767456476,-495.43669333,0.00044203,2]
[405082249,1770767456486,-37726.45,0.00044209,13]
[405082250,1770767456496,-21288.19,0.00044209,13]
[405082251,1770767456506,-5693.93,0.00044209,13]
[405082252,1770767456517,-413887.50136254,0.00044214,2]
[405082253,1770767458157,-300.0,0.00040061,2]
[405082254,1770767458167,-195.72,0.00040061,2]
[405082255,1770767458178,-104.28,0.00040061,2]
[405082256,1770767458188,-572.39029516,0.00040061,2]
[405082257,1770767458199,-61.48547497,0.00040061,2]
[405082258,1770767458210,-238.51452503,0.00040061,2]
[405082259,1770767458220,-140.37287479,0.00044214,2]
[405082260,1770767458276,-59565.86885583,0.00044214,2]
[405082261,1770767458286,-500.0,0.00044216,30]
[405082262,1770767458295,-500.0,0.00044216,30]
[405082263,1770767458305,-500.0,0.00044216,30]
[405082264,1770767458314,-522.31,0.00044219,120]
[405082265,1770767458324,-409.12700982,0.00044219,120]
[405082266,1770767458332,-190.76167934,0.00044224,2]
[405082267,1770767458346,-840.0,0.00044228,16]
[405082268,1770767458355,-164.0,0.00044243,16]
[405082269,1770767458365,-840.0,0.00044248,16]
[405082270,1770767458374,-5800.0,0.00044263,14]
[405082271,1770767458383,-273.95824031,0.00044266,120]
[405082272,1770767458393,-5800.0,0.00044271,14]
[405082273,1770767458403,-153.04,0.00044276,120]
[405082274,1770767458412,-5800.0,0.0004428,14]
[405082275,1770767458422,-25000.0,0.00044286,15]
[405082276,1770767458431,-5800.0,0.00044288,14]
[405082277,1770767458441,-379.0,0.0004429,2]
[405082278,1770767458450,-25000.0,0.00044294,15]
[405082279,1770767458459,-5800.0,0.00044297,14]
[405082280,1770767458468,-178.14743376,0.00044299,120]
[405082281,1770767458478,-174.66845195,0.00044299,120]
[405082282,1770767458487,-179.68484406,0.00044299,120]
[405082283,1770767458497,-3228.0,0.000443,7]
[405082284,1770767458506,-25000.0,0.00044303,15]
[405082285,1770767458516,-5800.0,0.00044305,14]
[405082286,1770767458525,-25000.0,0.00044312,15]
[405082287,1770767458535,-151.0,0.00044312,120]
[405082288,1770767458544,-151.0,0.00044312,120]
[405082289,1770767458554,-213.739304,0.00044312,120]
[405082290,1770767458563,-183.726872,0.00044312,120]
[405082291,1770767458574,-151.0,0.00044312,120]
[405082292,1770767458583,-151.0,0.00044312,120]
[405082293,1770767458592,-151.0,0.00044312,120]
[405082294,1770767458602,-183.726872,0.00044312,120]
[405082295,1770767458611,-151.0,0.00044312,120]
[405082296,1770767458621,-183.726872,0.00044312,120]
[405082297,1770767458631,-183.726864,0.00044312,120]
[405082298,1770767458640,-305.502484,0.00044312,120]
[405082299,1770767458650,-305.502484,0.00044312,120]
[405082300,1770767458660,-305.502484,0.00044312,120]
[405082301,1770767458670,-151.0,0.00044312,120]
[405082302,1770767458680,-305.502476,0.00044312,120]
[405082303,1770767458689,-151.0,0.00044312,120]
[405082304,1770767458702,-158.040723,0.00044312,31]
[405082305,1770767458712,-158.040723,0.00044312,31]
[405082306,1770767458723,-158.040723,0.00044312,31]
[405082307,1770767458733,-151.0,0.00044312,120]
[405082308,1770767458743,-151.0,0.00044312,120]
[405082309,1770767458753,-158.040717,0.00044312,31]
[405082310,1770767458763,-189.409335,0.00044312,120]
[405082311,1770767458773,-189.409335,0.00044312,120]
[405082312,1770767458784,-189.409335,0.00044312,120]
[405082313,1770767458795,-189.409332,0.00044312,120]
[405082314,1770767458806,-151.0,0.00044312,120]
[405082315,1770767458818,-151.0,0.00044312,120]
[405082316,1770767458827,-621.79621,0.00044312,7]
[405082317,1770767458837,-151.0,0.00044312,120]
[405082318,1770767458846,-621.79621,0.00044312,7]
[405082319,1770767458856,-621.79621,0.00044312,7]
[405082320,1770767458868,-621.796206,0.00044312,7]
[405082321,1770767458877,-151.0,0.00044312,120]
[405082322,1770767458887,-5800.0,0.00044314,14]
[405082323,1770767458897,-202.0,0.00044318,2]
[405082324,1770767458907,-25000.0,0.00044321,15]
[405082325,1770767458917,-151.0,0.00044321,120]
[405082326,1770767458928,-151.0,0.00044321,120]
[405082327,1770767458938,-151.0,0.00044321,120]
[405082328,1770767458948,-151.0,0.00044321,120]
[405082329,1770767458958,-151.0,0.00044321,120]
[405082330,1770767458969,-87.56953765,0.00044321,120]
[405082331,1770767458984,-63.43046235,0.00044321,120]
[405082332,1770767458995,-328.00953762,0.00044321,7]
[405082333,1770767459008,-832.78959538,0.00044321,7]
[405082334,1770767459017,-1160.799133,0.00044321,7]
[405082335,1770767459027,-1160.799133,0.00044321,7]
[405082336,1770767459038,-1160.799128,0.00044321,7]
[405082337,1770767459048,-209.386772,0.00044321,28]
[405082338,1770767459059,-209.386772,0.00044321,28]
[405082339,1770767459069,-209.386772,0.00044321,28]
[405082340,1770767459079,-209.386781,0.00044321,28]
[405082341,1770767459088,-1369.41989637,0.00044322,14]
[405082344,1770767648049,166.66,0.0003019,30]
[405082345,1770767648240,166.66,0.00030826,30]
[405082346,1770767648441,166.66,0.00031462,30]
[405082347,1770767648815,166.66,0.00032097,30]
[405082348,1770767649084,166.66,0.00032733,30]
[405082349,1770767649301,166.66,0.00033368,30]